bitfinex-derivatives/quotes_BTCF0:USTF0_20250828
["timestamp","ask_amount","ask_price","bid_price","bid_amount"]
[1756372029920,1.38577237,113150.0,113140.0,0.0923813]
[1756372031624,0.96796529,113150.0,113140.0,0.0923813]
[1756372031930,1.38577237,113150.0,113140.0,0.2052413]
[1756372032119,1.38577237,113150.0,113140.0,0.59942838]
[1756372032526,1.38577237,113150.0,113140.0,0.1629313]
[1756372032718,1.38577237,113150.0,113140.0,0.58073838]
[1756372033119,1.38577237,113150.0,113140.0,0.54646838]
[1756372033925,1.38577237,113150.0,113140.0,0.1629313]
[1756372034126,1.38577237,113150.0,113140.0,0.58073838]
[1756372035126,1.43344026,113150.0,113140.0,0.58073838]
[1756372035828,1.38577237,113150.0,113140.0,0.58073838]
[1756372036426,1.38577237,113150.0,113140.0,0.60435838]
[1756372036626,1.38577237,113150.0,113140.0,0.1865513]
[1756372036831,1.38577237,113150.0,113140.0,0.60435838]
[1756372037430,1.43344026,113150.0,113140.0,0.60435838]
[1756372038033,1.38577237,113150.0,113140.0,0.60435838]
[1756372038331,1.43344026,113150.0,113140.0,0.60435838]
[1756372040530,1.43344026,113150.0,113140.0,0.62304838]
[1756372040724,1.43344026,113150.0,113140.0,0.61864838]
[1756372040925,1.43344026,113150.0,113140.0,0.2008413]
[1756372041129,1.43344026,113150.0,113140.0,0.61864838]
[1756372041323,1.43344026,113150.0,113140.0,0.59502838]
[1756372042026,1.43344026,113150.0,113140.0,0.61864838]
[1756372044432,1.43344026,113150.0,113140.0,0.1585313]
[1756372044634,1.43344026,113150.0,113140.0,0.57633838]
[1756372044835,1.43344026,113150.0,113140.0,0.59995838]
[1756372045035,1.38577237,113150.0,113140.0,0.59995838]
[1756372045534,1.38577237,113150.0,113140.0,0.57633838]
[1756372047030,1.38577237,113150.0,113140.0,0.54206838]
[1756372048539,1.38577237,113150.0,113140.0,0.57633838]
[1756372048730,1.53247237,113150.0,113140.0,0.57633838]
[1756372048937,1.38577237,113150.0,113140.0,0.57633838]
[1756372049640,1.38577237,113150.0,113140.0,0.1585313]
[1756372051134,1.38577237,113150.0,113140.0,0.57633838]
[1756372051538,1.38577237,113150.0,113140.0,0.54206838]
[1756372052130,1.38577237,113150.0,113140.0,0.57633838]
[1756372052440,1.38577237,113150.0,113140.0,0.1585313]
[1756372052936,0.96796529,113150.0,113140.0,0.1585313]
[1756372053137,1.38577237,113150.0,113140.0,0.1821513]
[1756372053442,1.38577237,113150.0,113140.0,0.1585313]
[1756372055539,0.96796529,113150.0,113140.0,0.59965838]
[1756372055740,1.38577237,113150.0,113140.0,0.2011413]
[1756372055940,1.38577237,113150.0,113140.0,0.61894838]
[1756372056136,1.38577237,113150.0,113140.0,0.0879813]
[1756372056335,0.96796529,113150.0,113140.0,0.57780838]
[1756372056541,1.38577237,113150.0,113140.0,0.60112838]
[1756372056846,1.38577237,113150.0,113140.0,0.57780838]
[1756372057736,1.38577237,113150.0,113140.0,0.1259313]
[1756372057941,1.38577237,113150.0,113140.0,0.57780838]
[1756372059748,1.02497237,113150.0,113140.0,0.57780838]
[1756372060046,1.74657237,113150.0,113140.0,0.1600013]
[1756372060241,1.74657237,113150.0,113140.0,0.57780838]
[1756372061446,1.74657237,113150.0,113140.0,0.1600013]
[1756372061750,1.74657237,113150.0,113140.0,0.1259313]
[1756372062748,1.74657237,113150.0,113140.0,0.1103313]
[1756372063744,1.32876529,113150.0,113140.0,0.1103313]
[1756372063942,1.74657237,113150.0,113140.0,0.1103313]
[1756372065852,1.74657237,113150.0,113140.0,0.1259313]
[1756372067052,1.74657237,113150.0,113140.0,0.1035813]
[1756372067244,0.2351512,113140.0,113130.0,0.1263389]
[1756372067446,1.85265007,113140.0,113130.0,0.64552598]
[1756372067645,1.85265007,113140.0,113130.0,0.62082598]
[1756372067849,1.43484299,113140.0,113130.0,0.62082598]
[1756372068054,1.85265007,113140.0,113130.0,0.2030189]
[1756372068448,1.85265007,113140.0,113130.0,0.62082598]
[1756372068760,1.43484299,113140.0,113130.0,0.62082598]
[1756372068951,1.43484299,113140.0,113130.0,0.62382598]
[1756372069454,1.85265007,113140.0,113130.0,0.62582598]
[1756372070956,1.43484299,113140.0,113130.0,0.62582598]
[1756372071258,1.85265007,113140.0,113130.0,0.62582598]
[1756372072558,1.85265007,113140.0,113130.0,0.2080189]
[1756372072758,1.85265007,113140.0,113130.0,0.62582598]
[1756372073057,1.85265007,113140.0,113130.0,0.2080189]
[1756372073355,1.85265007,113140.0,113130.0,0.62582598]
[1756372074362,1.43484299,113140.0,113130.0,0.62582598]
[1756372074552,1.85265007,113140.0,113130.0,0.62582598]
[1756372075254,1.85265007,113140.0,113130.0,0.2080189]
[1756372075452,1.85265007,113140.0,113130.0,0.62582598]
[1756372078260,1.43484299,113140.0,113130.0,0.65052598]
[1756372078461,1.85265007,113140.0,113130.0,0.62582598]
[1756372080762,0.49740179,113140.0,113130.0,1.43833306]
[1756372080962,0.05362179,113140.0,113130.0,2.04913306]
[1756372081164,0.02409179,113140.0,113130.0,2.04913306]
[1756372081359,0.11251,113150.0,113140.0,0.2043912]
[1756372081564,0.11219973,113150.0,113140.0,1.35631828]
[1756372081864,0.11219973,113150.0,113140.0,1.60631828]
[1756372081865,0.06962973,113150.0,113140.0,1.60631828]
[1756372082868,0.04557,113150.0,113140.0,1.60831828]
[1756372084975,0.06952807,113150.0,113140.0,1.60831828]
[1756372085278,0.05348807,113150.0,113140.0,1.60831828]
[1756372086374,0.05348807,113150.0,113140.0,1.35831828]
[1756372086975,0.02953,113150.0,113140.0,1.35831828]
[1756372088467,0.03596643,113160.0,113150.0,0.2239935]
[1756372088670,0.03277033,113160.0,113150.0,1.38260058]
[1756372089177,0.05991033,113160.0,113150.0,2.19920058]
[1756372089477,0.03596643,113160.0,113150.0,2.19920058]
[1756372095183,0.00882643,113160.0,113150.0,2.19920058]
[1756372095382,0.1522032,113170.0,113150.0,2.19920058]
[1756372095583,0.3028281,113170.0,113160.0,0.64179278]
[1756372095881,0.3028281,113170.0,113160.0,0.99179278]
[1756372097272,0.3048281,113170.0,113160.0,0.99179278]
[1756372097477,0.28060331,113170.0,113160.0,0.99179278]
[1756372097675,0.31347331,113170.0,113160.0,0.5639857]
[1756372097878,0.31347331,113170.0,113160.0,1.39959986]
[1756372098584,0.31447331,113170.0,113160.0,1.39959986]
[1756372098886,0.31447331,113170.0,113160.0,0.98179278]
[1756372102785,0.13231331,113170.0,113160.0,1.39959986]
[1756372102977,0.13231331,113170.0,113160.0,1.40959986]
[1756372103172,0.18857331,113170.0,113160.0,1.38959986]
[1756372103382,0.24447331,113170.0,113160.0,1.37959986]
[1756372106789,0.24447331,113170.0,113160.0,0.96179278]
[1756372108089,0.24447331,113170.0,113160.0,1.37959986]
[1756372108291,0.24450768,113170.0,113160.0,1.37959986]
[1756372108689,0.14789768,113170.0,113160.0,1.37959986]
[1756372108889,0.13234768,113170.0,113160.0,1.37959986]
[1756372111196,0.22643768,113170.0,113160.0,0.2239857]
[1756372111392,0.24450768,113170.0,113160.0,1.42959986]
[1756372112095,0.18860768,113170.0,113160.0,1.42959986]
[1756372112696,0.18860768,113170.0,113160.0,1.43959986]
[1756372113092,0.24450768,113170.0,113160.0,1.43959986]
[1756372113498,0.18860768,113170.0,113160.0,1.43959986]
[1756372117098,0.18860768,113170.0,113160.0,1.80039986]
[1756372117692,0.14789768,113170.0,113160.0,1.80039986]
[1756372118994,0.14789768,113170.0,113160.0,1.42039986]
[1756372119195,0.20570768,113170.0,113160.0,1.77039986]
[1756372120298,0.14789768,113170.0,113160.0,1.77039986]
[1756372122598,0.18825768,113170.0,113160.0,0.5847857]
[1756372122903,0.18825768,113170.0,113160.0,1.79039986]
[1756372124199,0.18825768,113170.0,113160.0,1.78039986]
[1756372124399,0.18825768,113170.0,113160.0,1.75039986]
[1756372125306,0.18825768,113170.0,113160.0,1.42039986]
[1756372125506,0.18825768,113170.0,113160.0,1.76039986]
[1756372127707,0.24606768,113170.0,113160.0,1.76039986]
[1756372128813,0.18825768,113170.0,113160.0,1.76039986]
[1756372133326,0.22142768,113170.0,113160.0,1.76039986]
[1756372135228,0.24606768,113170.0,113160.0,1.76039986]
[1756372136323,0.24606768,113170.0,113160.0,1.42039986]
[1756372136524,0.24606768,113170.0,113160.0,1.78039986]
[1756372139729,0.18825768,113170.0,113160.0,1.78039986]
[1756372139931,0.18825768,113170.0,113160.0,0.5847857]
[1756372140127,0.18825768,113170.0,113160.0,1.74039986]
[1756372141832,0.18825768,113170.0,113160.0,0.5847857]
[1756372142038,0.24606768,113170.0,113160.0,1.42039986]
[1756372142334,0.24606768,113170.0,113160.0,1.74039986]
[1756372143535,0.24606768,113170.0,113160.0,0.9047857]
[1756372143737,0.71906256,113170.0,113160.0,0.64179278]
[1756372143937,0.33442548,113170.0,113160.0,0.64179278]
[1756372144126,0.75223256,113170.0,113160.0,0.64179278]
[1756372145338,0.24606768,113170.0,113160.0,0.64179278]
[1756372147239,0.66387476,113170.0,113160.0,0.64179278]
[1756372147638,0.24606768,113170.0,113160.0,0.64179278]
[1756372147838,0.66387476,113170.0,113160.0,0.64179278]
[1756372148139,0.66387476,113170.0,113160.0,0.2239857]
[1756372148332,0.66387476,113170.0,113160.0,0.64179278]
[1756372148737,0.66387476,113170.0,113160.0,0.2239857]
[1756372148934,0.66387476,113170.0,113160.0,0.64179278]
[1756372149538,0.24606768,113170.0,113160.0,0.64179278]
[1756372151239,0.33442558,113170.0,113160.0,0.64179278]
[1756372152441,0.69522558,113170.0,113160.0,0.64179278]
[1756372159534,0.69530336,113170.0,113160.0,0.64179278]
[1756372159843,0.69530336,113170.0,113160.0,1.05959986]
[1756372160338,0.62614016,113170.0,113160.0,1.05959986]
[1756372162746,0.53778226,113170.0,113160.0,1.05959986]
[1756372164144,0.62614016,113170.0,113160.0,1.05959986]
[1756372165143,0.62614016,113170.0,113160.0,1.03489986]
[1756372165344,0.62614016,113170.0,113160.0,0.64179278]
[1756372167244,0.62614016,113170.0,113160.0,0.61709278]
[1756372169447,1.04394724,113170.0,113160.0,0.61709278]
[1756372170346,1.11401527,113170.0,113160.0,0.61709278]
[1756372170946,0.69620819,113170.0,113160.0,0.61709278]
[1756372171847,0.69620819,113170.0,113160.0,0.64179278]
[1756372172451,0.69620819,113170.0,113160.0,0.61709278]
[1756372175153,0.74387608,113170.0,113160.0,0.61709278]
[1756372177756,1.55451608,113170.0,113160.0,0.61709278]
[1756372177957,1.97232316,113170.0,113160.0,0.61709278]
[1756372178748,1.97232316,113170.0,113160.0,0.1992857]
[1756372179057,1.55451608,113170.0,113160.0,0.61709278]
[1756372179459,1.55451608,113170.0,113160.0,0.64179278]
[1756372180359,1.19371608,113170.0,113160.0,0.64179278]
[1756372182865,1.14604819,113170.0,113160.0,0.64179278]
[1756372183064,1.19371608,113170.0,113160.0,0.64179278]
[1756372184165,1.10535818,113170.0,113160.0,0.64179278]
[1756372184665,1.10535818,113170.0,113160.0,1.41959986]
[1756372184864,1.10535818,113170.0,113160.0,1.37959986]
[1756372185063,1.05769029,113170.0,113160.0,1.37959986]
[1756372187568,1.05769029,113170.0,113160.0,0.2239857]
[1756372187758,1.05769029,113170.0,113160.0,1.41959986]
[1756372187959,1.05769029,113170.0,113160.0,1.05959986]
[1756372188158,0.24705029,113170.0,113160.0,1.43959986]
[1756372188360,0.05461705,113170.0,113160.0,2.05039986]
[1756372188565,0.02747705,113170.0,113160.0,2.05039986]
[1756372189262,0.003,113170.0,113160.0,2.05039986]
[1756372190872,0.03021,113170.0,113160.0,2.05039986]
[1756372193175,0.03021,113170.0,113160.0,1.80039986]
[1756372201783,0.003,113170.0,113160.0,1.80039986]
[1756372201975,0.02721,113180.0,113170.0,0.0883579]
[1756372202175,0.05148595,113180.0,113170.0,2.55781206]
[1756372202378,0.02721,113180.0,113170.0,2.14000498]
[1756372202780,0.08917,113190.0,113180.0,0.13891]
[1756372203075,0.17706305,113190.0,113180.0,0.95506718]
[1756372204285,0.18006305,113190.0,113180.0,0.95506718]
[1756372204681,0.05448305,113190.0,113180.0,1.73367426]
[1756372204887,0.003,113190.0,113180.0,1.73367426]
[1756372205083,0.0283,113200.0,113190.0,0.2250322]
[1756372205385,0.05891,113210.0,113190.0,2.54180636]
[1756372205386,0.0283,113210.0,113190.0,2.54180636]
[1756372205693,0.05255882,113210.0,113200.0,1.00363148]
[1756372205888,0.05255882,113210.0,113200.0,1.36363148]
[1756372207090,0.08549882,113210.0,113200.0,1.36363148]
[1756372207289,0.11004882,113210.0,113200.0,1.36363148]
[1756372207883,0.08579,113210.0,113200.0,1.36363148]
[1756372208090,0.08579,113210.0,113200.0,1.36563148]
[1756372209183,0.08579,113210.0,113200.0,1.36663148]
[1756372211394,0.0283,113210.0,113200.0,1.36663148]
[1756372213999,0.14454,113210.0,113200.0,0.9488244]
[1756372214193,0.08705,113210.0,113200.0,1.36663148]
[1756372215099,0.11109793,113210.0,113200.0,1.36663148]
[1756372220903,0.16858793,113210.0,113200.0,1.36663148]
[1756372225105,0.14454,113210.0,113200.0,1.36663148]
[1756372225309,0.14454,113210.0,113200.0,1.02663148]
[1756372225605,0.14454,113210.0,113200.0,1.34663148]
[1756372228810,0.16861951,113210.0,113200.0,1.34663148]
[1756372229913,0.16861951,113210.0,113200.0,1.02663148]
[1756372230111,0.16861951,113210.0,113200.0,1.35663148]
[1756372232304,0.16861951,113210.0,113200.0,1.00663148]
[1756372232514,0.16861951,113210.0,113200.0,1.02663148]
[1756372232811,0.14406951,113210.0,113200.0,1.02663148]
[1756372233708,0.55348659,113210.0,113200.0,0.2480244]
[1756372233917,0.58642659,113210.0,113200.0,0.66583148]
[1756372234414,0.16861951,113210.0,113200.0,0.66583148]
[1756372237114,0.16861951,113210.0,113200.0,0.2480244]
[1756372237417,0.16861951,113210.0,113200.0,0.66583148]
[1756372237418,0.83642659,113210.0,113200.0,0.66583148]
[1756372237610,0.83642659,113210.0,113200.0,0.64113148]
[1756372237914,0.83642659,113210.0,113200.0,0.66583148]
[1756372238913,0.83642659,113210.0,113200.0,0.64113148]
[1756372240611,1.73443329,113210.0,113200.0,0.62113148]
[1756372241314,1.73443329,113210.0,113200.0,0.2033244]
[1756372241513,1.73443329,113210.0,113200.0,0.62113148]
[1756372245117,1.64610659,113210.0,113200.0,0.62113148]
[1756372247020,1.73443319,113210.0,113200.0,0.62113148]
[1756372249621,1.84523319,113210.0,113200.0,0.1289244]
[1756372250813,1.84523319,113210.0,113200.0,0.1609244]
[1756372252718,1.84523319,113210.0,113200.0,0.57873148]
[1756372253122,1.84523319,113210.0,113200.0,0.1289244]
[1756372253320,1.67742611,113210.0,113200.0,0.1289244]
[1756372253523,1.84523319,113210.0,113200.0,0.1289244]
[1756372253721,1.84523319,113210.0,113200.0,0.54673148]
[1756372254221,1.42742611,113210.0,113200.0,0.54673148]
[1756372254420,1.84523319,113210.0,113200.0,0.54673148]
[1756372254825,1.84523319,113210.0,113200.0,0.54722148]
[1756372255626,1.42742611,113210.0,113200.0,0.57922148]
[1756372255825,1.84523319,113210.0,113200.0,0.57922148]
[1756372257029,1.33909951,113210.0,113200.0,0.64802148]
[1756372257233,0.97829951,113210.0,113200.0,0.64802148]
[1756372257423,0.97829951,113210.0,113200.0,0.62332148]
[1756372257832,0.97829951,113210.0,113200.0,0.64802148]
[1756372258526,0.97829951,113210.0,113200.0,0.62332148]
[1756372259131,1.39610659,113210.0,113200.0,0.62332148]
[1756372259525,1.39610659,113210.0,113200.0,0.64802148]
[1756372259928,0.97829951,113210.0,113200.0,0.64802148]
[1756372260330,0.97829951,113210.0,113200.0,0.62332148]
[1756372260726,0.97829951,113210.0,113200.0,0.64802148]
[1756372262127,0.16861951,113210.0,113200.0,0.64802148]
[1756372262424,0.97965951,113210.0,113200.0,1.00882148]
[1756372262924,0.17021951,113210.0,113200.0,1.00882148]
[1756372263131,0.94511951,113210.0,113200.0,1.25882148]
[1756372263328,0.97965951,113210.0,113200.0,1.57882148]
[1756372263520,0.97965951,113210.0,113200.0,1.62882148]
[1756372263724,0.97965951,113210.0,113200.0,1.25882148]
[1756372263920,0.97965951,113210.0,113200.0,1.63882148]
[1756372264125,0.97965951,113210.0,113200.0,1.27802148]
[1756372265027,0.17021951,113210.0,113200.0,0.89802148]
[1756372266033,0.53101951,113210.0,113200.0,0.87332148]
[1756372268133,0.17021951,113210.0,113200.0,0.89802148]
[1756372270633,0.53101951,113210.0,113200.0,0.89802148]
[1756372273938,0.53101951,113210.0,113200.0,0.4802144]
[1756372274141,0.53101951,113210.0,113200.0,0.89802148]
[1756372274342,0.17021951,113210.0,113200.0,0.89802148]
[1756372276638,0.25854621,113210.0,113200.0,0.89802148]
[1756372276843,0.67635329,113210.0,113200.0,0.87332148]
[1756372277145,0.67635329,113210.0,113200.0,0.62332148]
[1756372277740,1.28715329,113210.0,113200.0,0.59132148]
[1756372277941,1.28715329,113210.0,113200.0,0.2067144]
[1756372278145,1.28715329,113210.0,113200.0,0.62452148]
[1756372278935,1.28815329,113210.0,113200.0,0.1284144]
[1756372279141,1.28815329,113210.0,113200.0,0.53056148]
[1756372279343,1.28815329,113210.0,113200.0,0.1285344]
[1756372279537,1.28815329,113210.0,113200.0,0.57954148]
[1756372279843,1.28815329,113210.0,113200.0,0.60043148]
[1756372280438,1.26407378,113210.0,113200.0,0.1826244]
[1756372280633,1.28816654,113210.0,113200.0,0.1265344]
[1756372280840,1.63816654,113210.0,113200.0,0.00049]
[1756372281040,1.68583443,113210.0,113200.0,0.00049]
[1756372281346,1.68583443,113210.0,113180.0,0.2005289]
[1756372281347,0.2276622,113190.0,113180.0,0.2005289]
[1756372281547,1.42191496,113190.0,113180.0,0.2005289]
[1756372282948,1.42191496,113190.0,113180.0,0.2025289]
[1756372285048,1.42191496,113190.0,113180.0,0.2015289]
[1756372288052,0.97277276,113190.0,113180.0,0.97744611]
[1756372288252,0.97277276,113190.0,113180.0,0.59744611]
[1756372288448,1.06111506,113190.0,113180.0,0.2262289]
[1756372288753,1.3978223,113190.0,113180.0,0.57274611]
[1756372289153,1.3978223,113190.0,113180.0,0.59744611]
[1756372290354,1.3978223,113190.0,113180.0,0.57274611]
[1756372293857,1.3978223,113190.0,113180.0,0.2015289]
[1756372294059,1.3978223,113190.0,113180.0,0.57274611]
[1756372294856,1.3978223,113190.0,113180.0,0.2015289]
[1756372295758,1.3978223,113190.0,113180.0,0.1606189]
[1756372296557,1.3978223,113190.0,113180.0,0.1850289]
[1756372296857,1.42199084,113190.0,113180.0,0.1850289]
[1756372297458,1.42199084,113190.0,113180.0,0.1606189]
[1756372299161,1.42199084,113190.0,113180.0,0.1850289]
[1756372299461,1.42199084,113190.0,113180.0,0.1606189]
[1756372299854,1.3978223,113190.0,113180.0,0.1606189]
[1756372301260,1.83960174,113190.0,113180.0,0.57818321]
[1756372301652,1.83960174,113190.0,113180.0,0.60259321]
[1756372303663,1.83960174,113190.0,113180.0,0.1850289]
[1756372303866,1.83960174,113190.0,113180.0,0.57818321]
[1756372304464,1.83960174,113190.0,113180.0,0.60259321]
[1756372305264,1.83960174,113190.0,113180.0,0.57818321]
[1756372305661,1.83960174,113190.0,113180.0,0.1116389]
[1756372305868,1.83960174,113190.0,113180.0,0.52920321]
[1756372306368,1.83960174,113190.0,113180.0,0.1116389]
[1756372306568,1.83960174,113190.0,113180.0,0.52920321]
[1756372306769,1.83960174,113190.0,113180.0,0.54555321]
[1756372306968,1.83960174,113190.0,113180.0,0.60485321]
[1756372307663,1.83960174,113190.0,113180.0,0.1872889]
[1756372307870,1.83960174,113190.0,113180.0,0.60485321]
[1756372308171,1.83960174,113190.0,113180.0,0.62348321]
[1756372308467,2.63716605,113190.0,113180.0,0.001]
[1756372308667,2.56716605,113190.0,113180.0,0.001]
[1756372308972,2.71386605,113190.0,113180.0,0.001]
[1756372309668,1.82073743,113190.0,113180.0,0.001]
[1756372309969,0.1067401,113180.0,113170.0,0.41756431]
[1756372310169,1.03130954,113180.0,113170.0,0.41756431]
[1756372310369,0.2287379,113170.0,113160.0,0.60490581]
[1756372310566,1.42595303,113170.0,113160.0,0.74353581]
[1756372310961,1.43499485,113170.0,113160.0,0.74353581]
[1756372311667,1.07419485,113170.0,113160.0,0.74353581]
[1756372312068,1.07419485,113170.0,113160.0,0.74453581]
[1756372314269,1.49175916,113170.0,113160.0,0.74453581]
[1756372314468,1.49175916,113170.0,113160.0,0.70964581]
[1756372314671,1.49175916,113170.0,113160.0,0.74453581]
[1756372315369,1.85255916,113170.0,113160.0,0.66660581]
[1756372315674,1.85255916,113170.0,113160.0,0.57824431]
[1756372315870,1.85255916,113170.0,113160.0,0.66661001]
[1756372316273,1.85255916,113170.0,113160.0,0.70150001]
[1756372318476,1.85255916,113170.0,113160.0,0.58150001]
[1756372320170,1.85255916,113170.0,113160.0,0.54661001]
[1756372320376,1.85255916,113170.0,113160.0,0.50693001]
[1756372321178,1.43499485,113170.0,113160.0,0.58150001]
[1756372321380,1.85255916,113170.0,113160.0,0.58150001]
[1756372321574,1.85255916,113170.0,113160.0,0.54661001]
[1756372322280,1.85255916,113170.0,113160.0,0.53026001]
[1756372322480,1.92353909,113170.0,113160.0,0.53026001]
[1756372322781,1.92353909,113170.0,113160.0,0.54661001]
[1756372323082,1.92353909,113170.0,113160.0,0.58150001]
[1756372323581,1.92353909,113170.0,113160.0,0.60591001]
[1756372324382,1.05681688,113170.0,113160.0,0.62454001]
[1756372324575,1.03260175,113170.0,113160.0,0.64924001]
[1756372324884,1.05684209,113170.0,113160.0,0.64924001]
[1756372325781,1.03260175,113170.0,113160.0,0.64924001]
[1756372326584,1.12095965,113170.0,113160.0,0.62454001]
[1756372326984,1.12095965,113170.0,113160.0,0.64924001]
[1756372327983,1.12095965,113170.0,113160.0,1.06680432]
[1756372328179,1.12095965,113170.0,113160.0,1.04210432]
[1756372328485,1.12095965,113170.0,113160.0,1.06680432]
[1756372328783,1.03260175,113170.0,113160.0,1.06680432]
[1756372329375,0.22040175,113170.0,113160.0,1.37680432]
[1756372329577,1.03288175,113170.0,113160.0,1.73760432]
[1756372329776,0.04341,113170.0,113160.0,1.98760432]
[1756372330089,0.02814,113170.0,113160.0,1.98760432]
[1756372331388,0.06002,113170.0,113160.0,1.98760432]
[1756372331785,0.05196,113170.0,113160.0,2.49008432]
[1756372331991,0.08384,113170.0,113160.0,1.6749557]
[1756372332190,0.08384,113170.0,113160.0,2.85008432]
[1756372332386,0.06002,113170.0,113160.0,2.85008432]
[1756372332589,0.02814,113170.0,113160.0,2.85008432]
[1756372333686,0.02814,113170.0,113160.0,2.51008432]
[1756372333890,0.08384,113170.0,113160.0,2.81008432]
[1756372334090,0.08384,113170.0,113160.0,2.44928432]
[1756372334592,0.08384,113170.0,113160.0,2.81008432]
[1756372334793,0.08384,113170.0,113160.0,2.51008432]
[1756372335290,0.09248519,113170.0,113160.0,2.12928432]
[1756372335489,0.09248519,113170.0,113160.0,2.44928432]
[1756372337288,0.09248519,113170.0,113160.0,2.81008432]
[1756372338288,0.09248519,113170.0,113160.0,2.80960432]
[1756372338793,0.03779519,113170.0,113160.0,2.80960432]
[1756372339690,0.09349519,113170.0,113160.0,1.98760432]
[1756372339883,0.09349519,113170.0,113160.0,2.48956432]
[1756372340597,0.15012519,113170.0,113160.0,0.8424757]
[1756372340899,0.15012519,113170.0,113160.0,2.07212001]
[1756372341089,0.6560474,113170.0,113160.0,1.26004001]
[1756372341294,0.67987394,113170.0,113160.0,1.46128001]
[1756372341587,0.67987394,113170.0,113160.0,1.43658001]
[1756372342500,0.92987394,113170.0,113160.0,0.62454001]
[1756372342796,0.92987394,113170.0,113160.0,0.2069757]
[1756372342996,0.92987394,113170.0,113160.0,0.62454001]
[1756372342997,1.29067394,113170.0,113160.0,0.62454001]
[1756372343298,1.29067394,113170.0,113160.0,0.2316757]
[1756372343299,0.87310963,113170.0,113160.0,0.2316757]
[1756372344894,0.87310963,113170.0,113160.0,0.2069757]
[1756372346008,0.94401887,113170.0,113160.0,0.2316757]
[1756372346205,0.94401887,113170.0,113160.0,0.60298075]
[1756372347005,0.92019233,113170.0,113160.0,0.60298075]
[1756372347304,0.94402489,113170.0,113160.0,0.60298075]
[1756372347802,0.94402489,113170.0,113160.0,0.57828075]
[1756372351411,0.94402489,113170.0,113160.0,0.2069757]
[1756372352801,0.94402792,113170.0,113160.0,0.2069757]
[1756372356106,0.94402792,113170.0,113160.0,0.1639357]
[1756372356508,0.94402792,113170.0,113160.0,0.1874857]
[1756372356704,1.06533297,113170.0,113160.0,0.1525957]
[1756372356910,1.06533297,113170.0,113160.0,0.0893657]
[1756372358616,1.06533549,113170.0,113160.0,0.0893657]
[1756372359309,1.06533549,113170.0,113160.0,0.001]
[1756372359310,1.31533549,113170.0,113160.0,0.001]
[1756372359712,1.63533549,113170.0,113160.0,0.001]
[1756372360102,0.0883736,113150.0,113140.0,0.1119263]
[1756372360303,1.40095171,113150.0,113140.0,0.3107363]
[1756372360613,1.42435171,113150.0,113140.0,0.2554463]
[1756372361814,1.42435171,113150.0,113140.0,0.2574463]
[1756372362610,1.42435171,113150.0,113140.0,0.2203763]
[1756372363415,1.42435171,113150.0,113140.0,0.2447563]
[1756372365116,1.4005136,113150.0,113140.0,0.2447563]
[1756372365317,1.4005136,113150.0,113140.0,0.2233763]
[1756372365820,1.4005136,113150.0,113140.0,0.0933763]
[1756372368013,1.4005136,113150.0,113140.0,0.1304463]
[1756372368218,1.4005136,113150.0,113140.0,0.1621863]
[1756372368420,1.4005136,113150.0,113140.0,0.1857363]
[1756372369426,1.4005136,113150.0,113140.0,0.2043863]
[1756372372116,1.4005136,113150.0,113140.0,0.1621863]
[1756372373524,1.81839792,113150.0,113140.0,0.58007062]
[1756372374319,1.4005136,113150.0,113140.0,0.60362062]
[1756372374520,1.81839792,113150.0,113140.0,0.58007062]
[1756372374718,1.81839792,113150.0,113140.0,0.54833062]
[1756372374920,1.81839792,113150.0,113140.0,0.51126062]
[1756372375219,1.81839792,113150.0,113140.0,0.0933763]
[1756372375424,2.22268048,113150.0,113140.0,0.0933763]
[1756372376120,1.84268048,113150.0,113140.0,0.0933763]
[1756372376318,2.21268048,113150.0,113140.0,0.0933763]
[1756372377124,2.13268048,113150.0,113140.0,0.0933763]
[1756372377322,2.33634931,113150.0,113140.0,0.005]
[1756372381025,1.96479616,113150.0,113140.0,0.005]
[1756372381218,2.33634931,113150.0,113140.0,0.005]
[1756372383730,2.48304931,113150.0,113140.0,0.005]
[1756372385326,2.11149616,113150.0,113140.0,0.005]
[1756372385527,2.48304931,113150.0,113140.0,0.005]
[1756372385729,2.11149616,113150.0,113140.0,0.005]
[1756372385930,2.48304931,113150.0,113140.0,0.005]
[1756372386728,2.42896931,113150.0,113140.0,0.005]
[1756372386922,2.48354931,113150.0,113140.0,0.005]
[1756372387834,2.11199616,113150.0,113140.0,0.005]
[1756372388133,2.48354931,113150.0,113140.0,0.005]
[1756372388335,2.33684931,113150.0,113140.0,0.005]
[1756372390334,2.29687931,113150.0,113140.0,0.005]
[1756372390533,2.33684931,113150.0,113140.0,0.005]
[1756372393936,2.33654502,113150.0,113140.0,0.005]
[1756372395237,2.38421291,113150.0,113140.0,0.005]
[1756372395436,1.57345291,113150.0,113140.0,0.005]
[1756372395641,2.38421291,113150.0,113140.0,0.005]
[1756372397637,2.01265976,113150.0,113140.0,0.005]
[1756372397838,2.38421291,113150.0,113140.0,0.005]
[1756372398538,2.53091291,113150.0,113140.0,0.005]
[1756372399443,2.57732094,113150.0,113140.0,0.005]
[1756372399635,2.52965305,113150.0,113140.0,0.005]
[1756372403144,2.57732094,113150.0,113140.0,0.005]
[1756372404544,0.0883814,113140.0,113130.0,0.50634438]
[1756372404741,1.34361085,113140.0,113130.0,0.0883832]
[1756372405848,1.34361085,113140.0,113130.0,0.0913832]
[1756372406048,1.34361085,113140.0,113130.0,0.0953832]
[1756372406543,0.92564967,113140.0,113130.0,0.1664032]
[1756372406750,1.34361085,113140.0,113130.0,0.1664032]
[1756372407249,1.34361085,113140.0,113130.0,0.58436438]
[1756372408446,1.34361085,113140.0,113130.0,0.1339632]
[1756372408850,1.34361085,113140.0,113130.0,0.1185832]
[1756372409250,1.34361085,113140.0,113130.0,0.1339632]
[1756372409451,1.34361085,113140.0,113130.0,0.1664032]
[1756372411740,0.98281085,113140.0,113130.0,0.1664032]
[1756372411940,1.70441085,113140.0,113130.0,0.1664032]
[1756372412953,1.70441085,113140.0,113130.0,0.1891332]
[1756372413849,1.70441085,113140.0,113130.0,0.0953832]
[1756372414057,1.70441085,113140.0,113130.0,0.1339632]
[1756372414359,1.70441085,113140.0,113130.0,0.1891332]
[1756372414650,1.70441085,113140.0,113130.0,0.60709438]
[1756372414846,1.70441085,113140.0,113130.0,0.62528438]
[1756372416143,1.70441085,113140.0,113130.0,0.55192438]
[1756372417661,1.70441085,113140.0,113130.0,0.1339632]
[1756372418958,1.28644967,113140.0,113130.0,0.1339632]
[1756372419161,1.70441085,113140.0,113130.0,0.1339632]
[1756372420159,1.70441085,113140.0,113130.0,0.1185832]
[1756372422764,1.70441085,113140.0,113130.0,0.1693832]
[1756372422963,1.70441085,113140.0,113130.0,0.58734438]
[1756372423859,1.70441085,113140.0,113130.0,0.61133438]
[1756372424656,1.70441085,113140.0,113130.0,0.58734438]
[1756372425163,1.70441085,113140.0,113130.0,0.61133438]
[1756372425669,1.70441085,113140.0,113130.0,0.1933732]
[1756372426162,1.70441085,113140.0,113130.0,0.1693832]
[1756372427266,1.34361085,113140.0,113130.0,0.1693832]
[1756372427661,0.98281085,113140.0,113130.0,0.1693832]